[Event "Early-Titled-Tuesday-Blitz-October-24-2023"]
[Site "Chess.com"]
[Date "2023.10.24"]
[Round "2"]
[White "IlyaGrigorjev"]
[Black "KononenkoD"]
[Result "1-0"]
[WhiteElo "2936"]
[BlackElo "2590"]
[TimeControl "180+1"]
[EndTime "8:18:19 PDT"]
[Termination "IlyaGrigorjev won by resignation"]

1. e4 {[%clk 0:03:00.9]} 1... c6 {[%clk 0:02:59.6]} 2. d4 {[%clk 0:03:01.6]}
2... d5 {[%clk 0:03:00.5]} 3. e5 {[%clk 0:03:02.3]} 3... Bf5 {[%clk 0:03:00.3]}
4. Nf3 {[%clk 0:03:03.1]} 4... e6 {[%clk 0:03:00.4]} 5. Be2 {[%clk 0:03:03.8]}
5... Ne7 {[%clk 0:02:59.2]} 6. O-O {[%clk 0:03:03.5]} 6... c5 {[%clk 0:02:59.6]}
7. c4 {[%clk 0:03:02.9]} 7... Nbc6 {[%clk 0:03:00.2]} 8. dxc5 {[%clk 0:02:57.1]}
8... d4 {[%clk 0:02:37.3]} 9. Qa4 {[%clk 0:02:57.1]} 9... d3 {[%clk 0:02:26.3]}
10. Rd1 {[%clk 0:02:57.3]} 10... Ng6 {[%clk 0:02:21.1]} 11. Be3 {[%clk
0:02:45.4]} 11... Be7 {[%clk 0:02:10.6]} 12. Qb3 {[%clk 0:01:37.5]} 12... Ngxe5
{[%clk 0:02:03.8]} 13. Nxe5 {[%clk 0:01:38.4]} 13... Nxe5 {[%clk 0:02:04]} 14.
Bf4 {[%clk 0:01:39.1]} 14... Ng6 {[%clk 0:01:32.9]} 15. Bxd3 {[%clk 0:01:31.1]}
15... Nxf4 {[%clk 0:01:17.6]} 16. Bxf5 {[%clk 0:01:30.3]} 16... Qc7 {[%clk
0:01:12.2]} 17. Qb5+ {[%clk 0:01:18.8]} 17... Qc6 {[%clk 0:01:04.3]} 18. Qxc6+
{[%clk 0:01:19]} 18... bxc6 {[%clk 0:01:04.2]} 19. Be4 {[%clk 0:01:19.9]} 19...
Rc8 {[%clk 0:00:41.4]} 20. g3 {[%clk 0:01:19.9]} 20... Ng6 {[%clk 0:00:30]} 21.
Nc3 {[%clk 0:01:16.3]} 21... Bxc5 {[%clk 0:00:29.1]} 22. Rd2 {[%clk 0:01:07.5]}
22... Ne5 {[%clk 0:00:26.7]} 23. b3 {[%clk 0:01:01.5]} 23... Ke7 {[%clk
0:00:25]} 24. Rad1 {[%clk 0:00:54.1]} 24... Bb4 {[%clk 0:00:20.5]} 25. Rc2
{[%clk 0:00:54.6]} 25... Rhd8 {[%clk 0:00:20.3]} 26. Rxd8 {[%clk 0:00:40.1]}
26... Rxd8 {[%clk 0:00:21.2]} 27. Kf1 {[%clk 0:00:41]} 27... c5 {[%clk
0:00:19.8]} 28. Ke2 {[%clk 0:00:32.9]} 28... h5 {[%clk 0:00:18.1]} 29. h3 {[%clk
0:00:32.1]} 29... g5 {[%clk 0:00:18]} 30. f4 {[%clk 0:00:28.6]} 30... gxf4
{[%clk 0:00:18.3]} 31. gxf4 {[%clk 0:00:29.5]} 31... Ng6 {[%clk 0:00:16.7]} 32.
Bxg6 {[%clk 0:00:29.6]} 32... Bxc3 {[%clk 0:00:14.4]} 33. Bxf7 {[%clk
0:00:22.3]} 33... Kxf7 {[%clk 0:00:15.3]} 34. Rxc3 {[%clk 0:00:22.6]} 34... Rd4
{[%clk 0:00:14.8]} 35. Ke3 {[%clk 0:00:19.2]} 35... Rd1 {[%clk 0:00:14.7]} 36.
Rd3 {[%clk 0:00:19.8]} 36... Rh1 {[%clk 0:00:15.1]} 37. Rd7+ {[%clk 0:00:14.8]}
37... Kf6 {[%clk 0:00:15.3]} 38. Rxa7 {[%clk 0:00:15.7]} 38... Rxh3+ {[%clk
0:00:15.6]} 39. Ke4 {[%clk 0:00:16.5]} 39... Rh1 {[%clk 0:00:14.6]} 40. Rh7
{[%clk 0:00:14.5]} 40... Kg6 {[%clk 0:00:13.9]} 41. Rh8 {[%clk 0:00:14.2]} 41...
Kg7 {[%clk 0:00:14.5]} 42. Rc8 {[%clk 0:00:13.9]} 42... Re1+ {[%clk 0:00:13.2]}
43. Kf3 {[%clk 0:00:13.8]} 43... Ra1 {[%clk 0:00:11.4]} 44. Rxc5 {[%clk
0:00:13.5]} 44... Rxa2 {[%clk 0:00:11.8]} 45. Rxh5 {[%clk 0:00:14.1]} 45... Rc2
{[%clk 0:00:10.6]} 46. Rb5 {[%clk 0:00:14.4]} 46... Kf6 {[%clk 0:00:10.4]} 47.
Ke4 {[%clk 0:00:15]} 47... Re2+ {[%clk 0:00:10.7]} 48. Kd3 {[%clk 0:00:14.5]}
48... Rf2 {[%clk 0:00:11.4]} 49. Ke3 {[%clk 0:00:15.2]} 49... Rf1 {[%clk
0:00:12.1]} 50. Rb6 {[%clk 0:00:15.7]} 50... Rc1 {[%clk 0:00:11.5]} 51. Kd4
{[%clk 0:00:15]} 51... Rf1 {[%clk 0:00:11.4]} 52. Ke4 {[%clk 0:00:15.5]} 52...
Re1+ {[%clk 0:00:11.7]} 53. Kd3 {[%clk 0:00:15.6]} 53... Rf1 {[%clk 0:00:11.8]}
54. Ke3 {[%clk 0:00:16.2]} 54... Re1+ {[%clk 0:00:12.2]} 55. Kf2 {[%clk
0:00:16.9]} 55... Rc1 {[%clk 0:00:12.7]} 56. Rb5 {[%clk 0:00:14.7]} 56... Rc2+
{[%clk 0:00:11.3]} 57. Ke3 {[%clk 0:00:14.5]} 57... Rc1 {[%clk 0:00:11.9]} 58.
c5 {[%clk 0:00:14.8]} 58... Rc3+ {[%clk 0:00:10.5]} 59. Kd4 {[%clk 0:00:13.9]}
59... Rc1 {[%clk 0:00:08.7]} 60. b4 {[%clk 0:00:13.1]} 60... Kf5 {[%clk
0:00:09.1]} 61. c6+ {[%clk 0:00:13.3]} 61... Kxf4 {[%clk 0:00:08.6]} 62. Rc5
{[%clk 0:00:14.2]} 62... e5+ {[%clk 0:00:06.8]} 63. Kd5 {[%clk 0:00:14.5]} 63...
Rd1+ {[%clk 0:00:06.2]} 64. Ke6 {[%clk 0:00:14.8]} 64... e4 {[%clk 0:00:06.8]}
65. c7 {[%clk 0:00:15.1]} 65... Rh1 {[%clk 0:00:05.4]} 66. c8=Q {[%clk
0:00:15.4]} 66... Rh6+ {[%clk 0:00:06.3]} 67. Kd5 {[%clk 0:00:15.9]} 67... Rh5+
{[%clk 0:00:06.4]} 68. Kc4 {[%clk 0:00:16.5]} 68... Rxc5+ {[%clk 0:00:06.7]} 69.
Kxc5 {[%clk 0:00:17.4]} 1-0

[Event "Early-Titled-Tuesday-Blitz-October-24-2023"]
[Site "Chess.com"]
[Date "2023.10.24"]
[Round "2"]
[White "Kirill_Klukin"]
[Black "ViktoriyaTarasova"]
[Result "0-1"]
[WhiteElo "2653"]
[BlackElo "2384"]
[TimeControl "180+1"]
[EndTime "8:18:20 PDT"]
[Termination "ViktoriyaTarasova won by resignation"]

1. d4 {[%clk 0:02:47.5]} 1... Nf6 {[%clk 0:02:59.2]} 2. Nf3 {[%clk 0:02:46]}
2... e6 {[%clk 0:02:58.5]} 3. e3 {[%clk 0:02:46.1]} 3... b6 {[%clk 0:02:57.8]}
4. Bd3 {[%clk 0:02:46.7]} 4... Bb7 {[%clk 0:02:58.1]} 5. O-O {[%clk 0:02:47.2]}
5... d5 {[%clk 0:02:58.8]} 6. c4 {[%clk 0:02:47.9]} 6... Bd6 {[%clk 0:02:58.5]}
7. Nc3 {[%clk 0:02:48.5]} 7... O-O {[%clk 0:02:58.8]} 8. b3 {[%clk 0:02:46.8]}
8... Nbd7 {[%clk 0:02:57]} 9. Bb2 {[%clk 0:02:47.1]} 9... Ne4 {[%clk 0:02:52.2]}
10. Qc2 {[%clk 0:02:45.2]} 10... f5 {[%clk 0:02:51.9]} 11. cxd5 {[%clk
0:02:45.6]} 11... exd5 {[%clk 0:02:51.8]} 12. Rac1 {[%clk 0:02:43.1]} 12... a6
{[%clk 0:02:49.7]} 13. Ne2 {[%clk 0:02:42.9]} 13... Ndf6 {[%clk 0:02:46.1]} 14.
Ne5 {[%clk 0:02:43.1]} 14... Ng4 {[%clk 0:02:38.5]} 15. h3 {[%clk 0:02:28.7]}
15... Ngf6 {[%clk 0:02:18.5]} 16. f3 {[%clk 0:02:23.1]} 16... g6 {[%clk
0:02:06.7]} 17. Nf4 {[%clk 0:02:16.7]} 17... Ng3 {[%clk 0:01:53.9]} 18. Ne6
{[%clk 0:01:36.1]} 18... Qe7 {[%clk 0:01:51.3]} 19. Nxf8 {[%clk 0:01:35.7]}
19... Nxf1 {[%clk 0:01:49.8]} 20. Nfxg6 {[%clk 0:01:35.7]} 20... hxg6 {[%clk
0:01:46.4]} 21. Rxf1 {[%clk 0:01:32.8]} 21... Kg7 {[%clk 0:01:35]} 22. g4 {[%clk
0:01:29.3]} 22... Rh8 {[%clk 0:01:31.9]} 23. gxf5 {[%clk 0:01:19.3]} 23... Rxh3
{[%clk 0:01:29.5]} 24. Rf2 {[%clk 0:01:19.4]} 24... Nh5 {[%clk 0:01:22.4]} 25.
Rh2 {[%clk 0:00:49.1]} 25... Qg5+ {[%clk 0:01:16.3]} 26. Rg2 {[%clk 0:00:17.6]}
26... Qxe3+ {[%clk 0:00:38.2]} 27. Qf2 {[%clk 0:00:17.5]} 27... Qxf2+ {[%clk
0:00:29.6]} 28. Rxf2 {[%clk 0:00:17.1]} 28... gxf5 {[%clk 0:00:22.9]} 29. Bxf5
{[%clk 0:00:14.6]} 29... Rg3+ {[%clk 0:00:23.1]} 30. Rg2 {[%clk 0:00:14.7]}
30... Rxg2+ {[%clk 0:00:22.7]} 31. Kxg2 {[%clk 0:00:15.6]} 31... Kf6 {[%clk
0:00:22.6]} 32. Bg4 {[%clk 0:00:15.2]} 32... Nf4+ {[%clk 0:00:20.8]} 33. Kf2
{[%clk 0:00:15.6]} 33... c5 {[%clk 0:00:14.5]} 34. Nd7+ {[%clk 0:00:09.1]} 34...
Ke7 {[%clk 0:00:14.5]} 35. dxc5 {[%clk 0:00:09.7]} 35... bxc5 {[%clk 0:00:11.5]}
36. Bf6+ {[%clk 0:00:08.7]} 36... Kf7 {[%clk 0:00:11.1]} 37. Bg5 {[%clk
0:00:05.9]} 37... Nd3+ {[%clk 0:00:10.4]} 38. Ke2 {[%clk 0:00:06.5]} 38... Nb4
{[%clk 0:00:10.5]} 39. a3 {[%clk 0:00:06.4]} 39... Nc2 {[%clk 0:00:11.1]} 40.
Bc1 {[%clk 0:00:06.1]} 40... Nd4+ {[%clk 0:00:10.5]} 41. Kd3 {[%clk 0:00:05.9]}
41... Nxb3 {[%clk 0:00:11.2]} 42. Bg5 {[%clk 0:00:03.8]} 42... c4+ {[%clk
0:00:08.6]} 43. Kc3 {[%clk 0:00:04.5]} 43... Bxa3 {[%clk 0:00:09.1]} 44. Ne5+
{[%clk 0:00:04.3]} 44... Ke8 {[%clk 0:00:08.8]} 45. Bd7+ {[%clk 0:00:03.4]}
45... Kf8 {[%clk 0:00:07.9]} 46. Bh6+ {[%clk 0:00:04]} 46... Kg8 {[%clk
0:00:08]} 47. Be6+ {[%clk 0:00:04.1]} 47... Kh7 {[%clk 0:00:08.5]} 48. Be3
{[%clk 0:00:03.6]} 48... Bc5 {[%clk 0:00:08.4]} 49. Bf5+ {[%clk 0:00:03.6]}
49... Kg7 {[%clk 0:00:08]} 50. Bg5 {[%clk 0:00:02.8]} 50... Bd4+ {[%clk
0:00:07.8]} 51. Kb4 {[%clk 0:00:03.4]} 51... Bxe5 {[%clk 0:00:08.5]} 52. Be6
{[%clk 0:00:03.7]} 52... Bd6+ {[%clk 0:00:08.9]} 53. Kc3 {[%clk 0:00:03.6]}
53... Kg6 {[%clk 0:00:08.2]} 54. f4 {[%clk 0:00:03.9]} 54... Bf8 {[%clk
0:00:06]} 55. Bd8 {[%clk 0:00:03.9]} 55... Bg7+ {[%clk 0:00:06.6]} 56. Kb4
{[%clk 0:00:04.5]} 56... a5+ {[%clk 0:00:06.6]} 57. Ka4 {[%clk 0:00:04.2]} 57...
Nd4 {[%clk 0:00:05.8]} 58. Bd7 {[%clk 0:00:03.9]} 58... Bc6+ {[%clk 0:00:06.1]}
59. Bxc6 {[%clk 0:00:04.5]} 59... Nxc6 {[%clk 0:00:06.8]} 60. Bc7 {[%clk
0:00:05.3]} 60... c3 {[%clk 0:00:07]} 61. Kb3 {[%clk 0:00:05.8]} 61... d4 {[%clk
0:00:07.6]} 62. Kc2 {[%clk 0:00:04.6]} 62... Kf5 {[%clk 0:00:08]} 63. Kd3 {[%clk
0:00:03.9]} 63... a4 {[%clk 0:00:08.6]} 64. Bb6 {[%clk 0:00:03.8]} 64... Bf6
{[%clk 0:00:07.6]} 65. Bc5 {[%clk 0:00:04]} 65... Kxf4 {[%clk 0:00:07.2]} 66.
Ba3 {[%clk 0:00:04.3]} 66... Kf5 {[%clk 0:00:07.6]} 67. Bc1 {[%clk 0:00:04.7]}
67... Ke6 {[%clk 0:00:07.7]} 68. Kc4 {[%clk 0:00:05.4]} 68... Ke5 {[%clk
0:00:07.4]} 69. Kc5 {[%clk 0:00:05.3]} 69... Ke4 {[%clk 0:00:07.6]} 70. Kxc6
{[%clk 0:00:04.4]} 70... d3 {[%clk 0:00:08.3]} 71. Kb5 {[%clk 0:00:05.1]} 71...
d2 {[%clk 0:00:08.6]} 0-1

[Event "Early-Titled-Tuesday-Blitz-October-24-2023"]
[Site "Chess.com"]
[Date "2023.10.24"]
[Round "2"]
[White "SlavenPastar"]
[Black "Artemiki"]
[Result "1-0"]
[WhiteElo "2607"]
[BlackElo "2310"]
[TimeControl "180+1"]
[EndTime "8:18:32 PDT"]
[Termination "SlavenPastar won by resignation"]

1. b3 {[%clk 0:03:00.9]} 1... Nf6 {[%clk 0:02:56.6]} 2. Bb2 {[%clk 0:03:01.5]}
2... d5 {[%clk 0:02:56.7]} 3. Nf3 {[%clk 0:03:02]} 3... e6 {[%clk 0:02:57.2]} 4.
e3 {[%clk 0:03:02.7]} 4... Be7 {[%clk 0:02:57.9]} 5. c4 {[%clk 0:03:03.3]} 5...
O-O {[%clk 0:02:58.8]} 6. Be2 {[%clk 0:03:04.1]} 6... c5 {[%clk 0:02:58.6]} 7.
cxd5 {[%clk 0:03:03.8]} 7... Nxd5 {[%clk 0:02:57.2]} 8. O-O {[%clk 0:03:02.9]}
8... Nc6 {[%clk 0:02:57.2]} 9. d4 {[%clk 0:03:03.1]} 9... cxd4 {[%clk
0:02:56.5]} 10. Nxd4 {[%clk 0:03:02.8]} 10... Nxd4 {[%clk 0:02:56.3]} 11. Bxd4
{[%clk 0:03:03]} 11... Bf6 {[%clk 0:02:55.1]} 12. Na3 {[%clk 0:02:58.7]} 12...
b6 {[%clk 0:02:44.6]} 13. Bf3 {[%clk 0:02:51.4]} 13... Bb7 {[%clk 0:02:42.2]}
14. Nc4 {[%clk 0:02:51.2]} 14... Rc8 {[%clk 0:02:25.7]} 15. Rc1 {[%clk 0:02:48]}
15... Qe7 {[%clk 0:02:17.7]} 16. Bxf6 {[%clk 0:02:25.1]} 16... Nxf6 {[%clk
0:01:55.8]} 17. Bxb7 {[%clk 0:02:22.2]} 17... Qxb7 {[%clk 0:01:52.1]} 18. Nd6
{[%clk 0:02:05]} 18... Rxc1 {[%clk 0:01:51.9]} 19. Nxb7 {[%clk 0:01:57.3]} 19...
Rxd1 {[%clk 0:01:51.6]} 20. Rxd1 {[%clk 0:01:58.2]} 20... Rb8 {[%clk 0:01:47.9]}
21. Rd8+ {[%clk 0:01:57.1]} 21... Rxd8 {[%clk 0:01:46]} 22. Nxd8 {[%clk
0:01:58]} 22... Ne4 {[%clk 0:01:41.2]} 23. Nc6 {[%clk 0:01:55.2]} 23... a5
{[%clk 0:01:38.4]} 24. Kf1 {[%clk 0:01:31.1]} 24... Kf8 {[%clk 0:01:38.3]} 25.
Ke1 {[%clk 0:01:26.2]} 25... Ke8 {[%clk 0:01:37.5]} 26. f3 {[%clk 0:01:19.8]}
26... Nc3 {[%clk 0:01:25.3]} 27. a4 {[%clk 0:01:15.5]} 27... f6 {[%clk
0:01:20.8]} 28. Nd4 {[%clk 0:00:59.7]} 28... Kd7 {[%clk 0:01:08.5]} 29. e4
{[%clk 0:00:58.3]} 29... e5 {[%clk 0:01:07.2]} 30. Nf5 {[%clk 0:00:55.7]} 30...
g6 {[%clk 0:01:06]} 31. Ne3 {[%clk 0:00:56.1]} 31... b5 {[%clk 0:00:55.6]} 32.
Kd2 {[%clk 0:00:55.1]} 32... Nb1+ {[%clk 0:00:07.6]} 33. Kc1 {[%clk 0:00:53]}
33... Nc3 {[%clk 0:00:06]} 34. Kc2 {[%clk 0:00:37.2]} 34... Ne2 {[%clk
0:00:05.2]} 35. axb5 {[%clk 0:00:29.3]} 35... Nd4+ {[%clk 0:00:05.8]} 36. Kb2
{[%clk 0:00:25.1]} 36... Nxb5 {[%clk 0:00:06.7]} 37. Nc4 {[%clk 0:00:25.4]}
37... Nd4 {[%clk 0:00:03.4]} 38. Nxa5 {[%clk 0:00:22.8]} 38... Kd6 {[%clk
0:00:03.1]} 39. b4 {[%clk 0:00:19.1]} 39... Nb5 {[%clk 0:00:02.1]} 40. Kb3
{[%clk 0:00:17.6]} 40... Nd4+ {[%clk 0:00:02.5]} 41. Kc4 {[%clk 0:00:15.4]}
41... Ne2 {[%clk 0:00:03.1]} 42. Kb5 {[%clk 0:00:11.1]} 42... Nd4+ {[%clk
0:00:03.2]} 43. Ka6 {[%clk 0:00:10.6]} 43... Nc2 {[%clk 0:00:02.5]} 44. b5
{[%clk 0:00:10.4]} 44... Nb4+ {[%clk 0:00:02.2]} 45. Ka7 {[%clk 0:00:11]} 45...
Kc5 {[%clk 0:00:02.1]} 46. b6 {[%clk 0:00:11.7]} 46... Kb5 {[%clk 0:00:02.6]}
47. b7 {[%clk 0:00:11.8]} 47... Kxa5 {[%clk 0:00:03.1]} 48. b8=Q {[%clk
0:00:06.3]} 48... Nc6+ {[%clk 0:00:03.6]} 49. Kb7 {[%clk 0:00:06]} 49... Nxb8
{[%clk 0:00:04.5]} 50. Kxb8 {[%clk 0:00:06.9]} 50... Kb6 {[%clk 0:00:04]} 51.
Kc8 {[%clk 0:00:07.1]} 51... Kc6 {[%clk 0:00:02.9]} 52. Kd8 {[%clk 0:00:07.3]}
52... Kd6 {[%clk 0:00:03.2]} 53. Ke8 {[%clk 0:00:07.5]} 53... Ke6 {[%clk
0:00:03.8]} 54. Kf8 {[%clk 0:00:07.7]} 54... h5 {[%clk 0:00:02.9]} 55. Kg7
{[%clk 0:00:07.1]} 55... g5 {[%clk 0:00:03.5]} 56. g3 {[%clk 0:00:03.8]} 56...
f5 {[%clk 0:00:02]} 57. Kg6 {[%clk 0:00:03.5]} 57... g4 {[%clk 0:00:02.2]} 58.
exf5+ {[%clk 0:00:03.7]} 58... Ke7 {[%clk 0:00:02.5]} 59. fxg4 {[%clk
0:00:03.2]} 59... e4 {[%clk 0:00:02.4]} 60. Kg7 {[%clk 0:00:03.2]} 60... e3
{[%clk 0:00:02.4]} 61. f6+ {[%clk 0:00:04.1]} 61... Kd7 {[%clk 0:00:02.6]} 62.
f7 {[%clk 0:00:05]} 62... e2 {[%clk 0:00:02.8]} 63. f8=Q {[%clk 0:00:05.6]}
63... e1=Q {[%clk 0:00:03.4]} 64. Qf5+ {[%clk 0:00:06.2]} 64... Kd6 {[%clk
0:00:02.2]} 65. gxh5 {[%clk 0:00:06.7]} 65... Qa1+ {[%clk 0:00:01.7]} 66. Qf6+
{[%clk 0:00:07]} 66... Qxf6+ {[%clk 0:00:02.2]} 67. Kxf6 {[%clk 0:00:07.9]} 1-0

[Event "Early-Titled-Tuesday-Blitz-October-24-2023"]
[Site "Chess.com"]
[Date "2023.10.24"]
[Round "2"]
[White "BJthechessgod"]
[Black "Alexchess1984"]
[Result "1/2-1/2"]
[WhiteElo "2384"]
[BlackElo "2691"]
[TimeControl "180+1"]
[EndTime "8:18:32 PDT"]
[Termination "Game drawn by repetition"]

1. e4 {[%clk 0:02:39.4]} 1... c5 {[%clk 0:02:59]} 2. Nf3 {[%clk 0:02:39.3]} 2...
Nc6 {[%clk 0:02:56.6]} 3. d4 {[%clk 0:02:39.9]} 3... cxd4 {[%clk 0:02:57.5]} 4.
Nxd4 {[%clk 0:02:40.2]} 4... g6 {[%clk 0:02:57.4]} 5. c4 {[%clk 0:02:40.7]} 5...
Nf6 {[%clk 0:02:54.5]} 6. Nc3 {[%clk 0:02:39.3]} 6... Nxd4 {[%clk 0:02:48.3]} 7.
Qxd4 {[%clk 0:02:40.2]} 7... d6 {[%clk 0:02:48.7]} 8. f3 {[%clk 0:02:37.2]} 8...
Bg7 {[%clk 0:02:47.1]} 9. Be3 {[%clk 0:02:37.3]} 9... O-O {[%clk 0:02:43.7]} 10.
Qd2 {[%clk 0:02:37.7]} 10... Be6 {[%clk 0:02:20.8]} 11. Be2 {[%clk 0:02:37.2]}
11... a5 {[%clk 0:02:14.3]} 12. O-O {[%clk 0:02:23.8]} 12... a4 {[%clk
0:02:14.3]} 13. Rac1 {[%clk 0:02:20.5]} 13... Qa5 {[%clk 0:01:49.1]} 14. Nd5
{[%clk 0:02:18.9]} 14... Qxd2 {[%clk 0:01:39.4]} 15. Nxe7+ {[%clk 0:02:18.1]}
15... Kh8 {[%clk 0:01:39.2]} 16. Bxd2 {[%clk 0:02:19]} 16... Rfe8 {[%clk
0:01:38]} 17. Nd5 {[%clk 0:02:18.1]} 17... Nxd5 {[%clk 0:01:37.4]} 18. cxd5
{[%clk 0:02:09.7]} 18... Bxd5 {[%clk 0:01:37.5]} 19. Bb5 {[%clk 0:02:00]} 19...
Bxa2 {[%clk 0:01:29.4]} 20. Bxe8 {[%clk 0:01:57.9]} 20... Rxe8 {[%clk
0:01:30.3]} 21. Bc3 {[%clk 0:01:56.4]} 21... d5 {[%clk 0:00:58.8]} 22. Bxg7+
{[%clk 0:01:53.7]} 22... Kxg7 {[%clk 0:00:59.7]} 23. exd5 {[%clk 0:01:54.2]}
23... Bxd5 {[%clk 0:00:55.2]} 24. Rfe1 {[%clk 0:01:50.7]} 24... Be6 {[%clk
0:00:46.1]} 25. Kf2 {[%clk 0:01:36.5]} 25... b5 {[%clk 0:00:41.2]} 26. Re4
{[%clk 0:01:27.7]} 26... Rd8 {[%clk 0:00:37.9]} 27. Ke3 {[%clk 0:01:24.5]} 27...
Bc4 {[%clk 0:00:33.9]} 28. Rc2 {[%clk 0:01:10.9]} 28... Rd3+ {[%clk 0:00:28.2]}
29. Kf2 {[%clk 0:01:10.9]} 29... Rb3 {[%clk 0:00:23.3]} 30. Re3 {[%clk 0:01:09]}
30... Rb4 {[%clk 0:00:18.6]} 31. Ke1 {[%clk 0:01:01.9]} 31... h5 {[%clk
0:00:19.5]} 32. Kd2 {[%clk 0:01:02]} 32... Be6 {[%clk 0:00:19.1]} 33. Kc1 {[%clk
0:00:56.4]} 33... Bf5 {[%clk 0:00:18.9]} 34. Rc5 {[%clk 0:00:56.5]} 34... Be6
{[%clk 0:00:17.5]} 35. Ree5 {[%clk 0:00:54.3]} 35... Bc4 {[%clk 0:00:16.7]} 36.
Kc2 {[%clk 0:00:53.9]} 36... Rb3 {[%clk 0:00:17.1]} 37. Re4 {[%clk 0:00:44.8]}
37... a3 {[%clk 0:00:16.7]} 38. bxa3 {[%clk 0:00:42.2]} 38... Rxa3 {[%clk
0:00:16.9]} 39. Rd4 {[%clk 0:00:41.9]} 39... Ra2+ {[%clk 0:00:17.1]} 40. Kc3
{[%clk 0:00:42.6]} 40... Rxg2 {[%clk 0:00:18]} 41. h4 {[%clk 0:00:41.9]} 41...
Rg3 {[%clk 0:00:17.9]} 42. Rf4 {[%clk 0:00:42.1]} 42... Rg1 {[%clk 0:00:15.2]}
43. Rc7 {[%clk 0:00:42.3]} 43... Rf1 {[%clk 0:00:14.7]} 44. Kd4 {[%clk
0:00:42.2]} 44... Rd1+ {[%clk 0:00:14.5]} 45. Kc5 {[%clk 0:00:40.1]} 45... Re1
{[%clk 0:00:14.6]} 46. Kb4 {[%clk 0:00:39.2]} 46... Re5 {[%clk 0:00:14.8]} 47.
Kc3 {[%clk 0:00:35.3]} 47... Re3+ {[%clk 0:00:14.8]} 48. Kd2 {[%clk 0:00:35.6]}
48... Rd3+ {[%clk 0:00:15]} 49. Kc2 {[%clk 0:00:36.3]} 49... Re3 {[%clk
0:00:14.8]} 50. Rb7 {[%clk 0:00:33.3]} 50... Re2+ {[%clk 0:00:15.1]} 51. Kc3
{[%clk 0:00:33.5]} 51... Rh2 {[%clk 0:00:16]} 52. Kd4 {[%clk 0:00:32.7]} 52...
Kh6 {[%clk 0:00:16]} 53. Rb8 {[%clk 0:00:31.7]} 53... Kg7 {[%clk 0:00:16.2]} 54.
Kc5 {[%clk 0:00:28.8]} 54... Kh6 {[%clk 0:00:14.8]} 55. Re4 {[%clk 0:00:26.2]}
55... Kg7 {[%clk 0:00:14.1]} 56. Ree8 {[%clk 0:00:26]} 56... Rf2 {[%clk
0:00:14.1]} 57. Re3 {[%clk 0:00:25.6]} 57... Rh2 {[%clk 0:00:13.1]} 58. Re4
{[%clk 0:00:25.5]} 58... Rh3 {[%clk 0:00:13.5]} 59. Rf4 {[%clk 0:00:24.2]} 59...
Rh2 {[%clk 0:00:13.9]} 60. Kd4 {[%clk 0:00:22]} 60... Rd2+ {[%clk 0:00:14]} 61.
Ke3 {[%clk 0:00:22.5]} 61... Re2+ {[%clk 0:00:14.4]} 62. Kd4 {[%clk 0:00:23.2]}
62... Re6 {[%clk 0:00:14.7]} 63. Re4 {[%clk 0:00:23.2]} 63... Rf6 {[%clk
0:00:14.8]} 64. f4 {[%clk 0:00:23.5]} 64... Rf5 {[%clk 0:00:15.2]} 65. Ke3
{[%clk 0:00:22.9]} 65... Rd5 {[%clk 0:00:15.4]} 66. Re5 {[%clk 0:00:23.1]} 66...
Rd3+ {[%clk 0:00:15.3]} 67. Kf2 {[%clk 0:00:22.6]} 67... Rh3 {[%clk 0:00:15.6]}
68. f5 {[%clk 0:00:19.8]} 68... Rxh4 {[%clk 0:00:16]} 69. fxg6 {[%clk 0:00:20]}
69... fxg6 {[%clk 0:00:16.5]} 70. Re7+ {[%clk 0:00:20.5]} 70... Kh6 {[%clk
0:00:16.7]} 71. Rh8+ {[%clk 0:00:19.5]} 71... Kg5 {[%clk 0:00:17.1]} 72. Re5+
{[%clk 0:00:20.4]} 72... Kf6 {[%clk 0:00:17.4]} 73. Rc5 {[%clk 0:00:20.4]} 73...
Rf4+ {[%clk 0:00:17.6]} 74. Kg3 {[%clk 0:00:20.6]} 74... Rg4+ {[%clk 0:00:18.1]}
75. Kh2 {[%clk 0:00:21]} 75... Rd4 {[%clk 0:00:15.9]} 76. Rf8+ {[%clk
0:00:20.3]} 76... Kg7 {[%clk 0:00:16.3]} 77. Rfc8 {[%clk 0:00:20.4]} 77... Kh6
{[%clk 0:00:16.5]} 78. Rh8+ {[%clk 0:00:20.5]} 78... Kg7 {[%clk 0:00:16.9]} 79.
Rhc8 {[%clk 0:00:21.4]} 79... Rd7 {[%clk 0:00:17.1]} 80. Kg3 {[%clk 0:00:20.7]}
80... Rf7 {[%clk 0:00:17.2]} 81. Kh4 {[%clk 0:00:20.7]} 81... Kh6 {[%clk
0:00:17.2]} 82. Rh8+ {[%clk 0:00:20.5]} 82... Kg7 {[%clk 0:00:17.8]} 83. Rhc8
{[%clk 0:00:21.1]} 83... Rf4+ {[%clk 0:00:17.8]} 84. Kg3 {[%clk 0:00:20]} 84...
Rg4+ {[%clk 0:00:18.3]} 85. Kh2 {[%clk 0:00:20.7]} 85... Rf4 {[%clk 0:00:17.3]}
86. Kg3 {[%clk 0:00:21]} 86... Rf7 {[%clk 0:00:17.8]} 87. Kh4 {[%clk 0:00:21.2]}
1/2-1/2